[Event "Gibraltar Challengers A 2019"]
[Site "Caleta"]
[Date "2019.01.21"]
[Round "1"]
[White "Castrillon Gomez, Melissa"]
[Black "Crocker, Philip J"]
[Result "1-0"]
[ECO "D15"]
[WhiteElo "2244"]
[BlackElo "2109"]
[Annotator "NA"]
[PlyCount "85"]
[EventDate "2019.01.21"]
[EventType "swiss"]
[EventCountry "GGB"]
[SourceTitle "playchess.com"]
[Source "ChessBase"]
[SourceQuality "1"]
[TimeControl "6600+10"]

{[%evp 13,81,0,32767,32767,54,64,62,32767,47,36,60,46,32767,50,32767,51,32767,31,55,55,63,47,32767,32767,52,-92,120,32767,118,119,139,167,132,159,180,32767,32767,32767,32767,208,183,32767,218,32767,285,226,32767,32767,32767,32767,32767,32767,32767,578,586,464,375,32767,470,456,32767,32767,32767,1081,32767,1157,32767,32767,32767,1362]} 1. Nf3 {[%emt 0:00:00]} Nf6 {[%emt 0:00:04]} 2. d4 {[%emt 0:00:14]} d5 {[%emt 0:00:16]} 3. c4 {[%emt 0:00:10]} c6 {[%emt 0:00:17]} 4. e3 {[%emt 0:00:10]} Bf5 {[%emt 0:00:33]} 5. Nc3 {[%emt 0:00:15]} a6 {[%emt 0:00:30]} 6. cxd5 {[%emt 0:04:23] D15: Slav Defence: 4 Nc3 a6 and gambit lines after 4 Nc3 dxc4} (6. Qb3 b5 7. c5 a5 8. Nh4 Bc8 9. f4 g6 10. Bd3 Nh5 11. Nf3 Bf5 12. e4 a4 13. Qc2 dxe4 14. Bxe4 Bxe4 15. Nxe4 {0-1 (53) Gelfand,B (2703)-Grandelius,N (2655) Batumi 2018}) 6... cxd5 {[%emt 0:00:34]} 7. Qa4+ {[%emt 0:03:41]} Bd7 {[%emt 0:03:51]} 8. Qb3 {[%emt 0:01:04]} e6 {[%emt 0:02:02]} 9. Qxb7 {[%emt 0:03:00]} Nc6 {[%emt 0:01:24]} 10. Qb3 {[%emt 0:00:29]} Bd6 {[%emt 0:03:08]} 11. Bd3 {[%emt 0:03:36]} O-O {[%emt 0:02:23]} 12. O-O {[%emt 0:02:39]} Rb8 $146 {[%emt 0:03:12]} ({Predecessor:} 12... Qc7 13. Bd2 Rfb8 {1-0 (42) Bente,B (2150)-Langer,W (1865) Seefeld 1998}) 13. Qd1 {[%emt 0:00:42]} e5 {[%emt 0:03:39]} 14. dxe5 {[%emt 0:04:37]} ({Don't play} 14. Bxa6 $6 e4 $11) 14... Nxe5 {[%emt 0:00:21]} 15. Be2 {[%emt 0:03:17]} Nxf3+ {[%emt 0:11:03]} 16. Bxf3 {[%emt 0:00:24]} Be6 {[%emt 0:02:57]} 17. Qd3 {[%emt 0:10:53]} Rb4 {[%emt 0:06:51]} 18. Rd1 {[%emt 0:08:40]} Ng4 {[%emt 0:07:15]} 19. h3 {[%emt 0:13:35] [#]} (19. Bxg4 $1 $14 {is the one way to stay ahead.} Bxg4 20. f3) 19... Ne5 $2 {[%emt 0:09:07]} (19... Bh2+ $1 $17 {stays on course.} 20. Kf1 Ne5 21. Qxa6 Nxf3 22. gxf3 Qf6) 20. Qe2 {[%emt 0:00:55]} Nxf3+ {[%emt 0:14:10]} 21. Qxf3 {[%emt 0:00:28]} Bb8 {[%emt 0:03:14]} 22. Nxd5 {[%emt 0:03:32]} Rb5 {[%emt 0:02:07]} 23. e4 {[%emt 0:04:49]} Bxd5 {[%emt 0:02:20]} 24. exd5 {[%emt 0:02:12]} Qd6 {[%emt 0:00:39]} 25. g3 {[%emt 0:02:40]} Qd7 {[%emt 0:01:40]} 26. a4 {[%emt 0:06:28]} Rb6 {[%emt 0:03:44]} 27. Kg2 {[%emt 0:01:47]} Rd8 {[%emt 0:02:06]} 28. Ra3 {[%emt 0:05:15]} Rb4 {[%emt 0:03:04]} (28... h6 $142 29. Rb3 Rg6) 29. a5 {[%emt 0:03:01]} Bd6 {[%emt 0:00:58]} 30. Rb3 {[%emt 0:04:47]} Rxb3 {[%emt 0:02:10]} 31. Qxb3 {[%emt 0:00:01]} Rb8 {[%emt 0:00:36]} 32. Qc4 {[%emt 0:01:47]} Rb5 {[%emt 0:01:09]} 33. Qc6 {[%emt 0:01:13]} Qd8 {[%emt 0:00:45]} 34. Re1 {[%emt 0:02:05]} Kf8 {[%emt 0:02:08]} 35. Be3 {[%emt 0:02:55]} Bb4 {[%emt 0:00:57]} 36. Rd1 {[%emt 0:00:55]} Bxa5 {[%emt 0:00:42]} 37. Bc5+ {[%emt 0:01:52]} Kg8 {[%emt 0:00:36]} 38. d6 {[%emt 0:00:21]} Rxb2 {[%emt 0:00:46]} 39. d7 {[%emt 0:00:48]} Rb8 {[%emt 0:03:23]} 40. Bd6 {[%emt 0:01:10]} Ra8 {[%emt 0:00:44]} 41. Be7 $18 {[%emt 0:00:13]} (41. Rd5 $142 h6 42. Re5) 41... Qxe7 {[%emt 0:01:12]} 42. Qxa8+ {[%emt 0:00:16]} Bd8 {[%emt 0:00:53]} 43. Rc1 {[%emt 0:00:30]} 1-0

[Event "Gibraltar Challengers A 2019"]
[Site "Caleta"]
[Date "2019.01.21"]
[Round "1"]
[White "Meszaros, Andras"]
[Black "Spacapan, Simon"]
[Result "1-0"]
[ECO "D30"]
[WhiteElo "2226"]
[BlackElo "2061"]
[Annotator "NA"]
[PlyCount "41"]
[EventDate "2019.01.21"]
[EventType "swiss"]
[EventCountry "GGB"]
[SourceTitle "playchess.com"]
[Source "ChessBase"]
[SourceQuality "1"]
[TimeControl "6600+10"]

{[%evp 9,41,21,32767,32767,32767,32767,32767,87,79,32767,32767,302,408,396,416,383,32767,32767,283,300,32767,32767,309,32767,32767,368,483,504,32767,32767,936,1011,1100,1139]} 1. Nf3 {[%emt 0:00:00]} d5 {[%emt 0:00:03]} 2. c4 {[%emt 0:00:03]} c6 {[%emt 0:00:09]} 3. d4 {[%emt 0:00:29]} Nf6 {[%emt 0:00:07]} 4. e3 {[%emt 0:00:13]} e6 {[%emt 0:00:47]} 5. Nbd2 {[%emt 0:00:16] LiveBook: 1435 Games} a6 {[%emt 0:01:54] D30: Queen's Gambit Declined: Systems without Nc3} (5... Nbd7 6. Bd3 Bd6 7. O-O O-O 8. e4 e5 9. cxd5 cxd5 10. Re1 h6 11. exd5 exd4 12. Nc4 Nb6 13. Nxd6 Qxd6 14. Nxd4 Nbxd5 15. Bf1 Rd8 16. Nb5 Qb6 17. Qf3 Bd7 18. Nc3 Bc6 19. Nxd5 Rxd5 20. b3 Re5 21. Qc3 Ng4 22. Be3 Nxe3 23. Qxe5 {½-½ (23) Onischuk,A (2685)-Duda,J (2697) Khanty-Mansiysk 2017}) 6. Bd3 {[%emt 0:05:03]} dxc4 {[%emt 0:02:21]} 7. Nxc4 {[%emt 0:00:00]} b5 {[%emt 0:04:37]} 8. Nce5 {[%emt 0:00:00]} c5 {[%emt 0:07:05]} 9. O-O {[%emt 0:00:27]} Bb7 {[%emt 0:00:16] [#]} 10. Ng5 $1 {[%emt 0:12:56]} Qd5 {[%emt 0:18:58]} 11. e4 {[%emt 0:00:39]} Qxd4 {[%emt 0:00:27]} 12. Nexf7 {[%emt 0:01:30]} c4 $146 {[%emt 0:30:42]} ({Predecessor:} 12... Rg8 13. Be3 Qd7 {1-0 (32) Huang,Z (2107)-Zhou,X (1682) Zhongshan 2014}) 13. Bc2 {[%emt 0:05:32]} Qxd1 {[%emt 0:01:22]} 14. Rxd1 {[%emt 0:00:05]} ({Weaker is} 14. Bxd1 Rg8 $16) 14... Rg8 {[%emt 0:00:44]} 15. Nxe6 {[%emt 0:02:22]} Nc6 {[%emt 0:13:48]} 16. Nfg5 {[%emt 0:08:59]} Rc8 {[%emt 0:02:20]} 17. e5 {[%emt 0:05:02]} h6 {[%emt 0:11:46]} 18. exf6 {[%emt 0:06:48]} gxf6 {[%emt 0:01:50]} 19. Ne4 {[%emt 0:00:26]} Kf7 {[%emt 0:02:49]} (19... Nb4 $142 20. Bb1 Be7) 20. Nxf8 {[%emt 0:00:34]} Kxf8 {[%emt 0:00:32]} 21. Rd7 $18 {[%emt 0:01:04]} 1-0

[Event "Gibraltar Challengers A 2019"]
[Site "Caleta"]
[Date "2019.01.21"]
[Round "1"]
[White "Abdulraheem Abdulrahman Akint"]
[Black "Bujakevich, Aleksandr"]
[Result "1/2-1/2"]
[ECO "A14"]
[WhiteElo "2224"]
[BlackElo "2054"]
[Annotator "NA"]
[PlyCount "78"]
[EventDate "2019.01.21"]
[EventType "swiss"]
[EventCountry "GGB"]
[SourceTitle "playchess.com"]
[Source "ChessBase"]
[SourceQuality "1"]
[TimeControl "6600+10"]

{[%evp 8,63,2,32767,32767,32767,32767,35,38,39,41,32767,27,35,46,32767,83,34,32767,32767,-204,-311,-10,-6,-11,-7,0,0,0,32767,0,32767,0,32767,32767,-44,32767,-63,-52,32767,32767,32767,32767,-63,-33,-68,-76,-72,-87,32767,32767,-82,32767,32767,32767,-91,-88,-88]} 1. Nf3 {[%emt 0:00:18]} d5 {[%emt 0:00:09]} 2. c4 {[%emt 0:00:09]} e6 {[%emt 0:00:37]} 3. g3 {[%emt 0:00:08]} Nf6 {[%emt 0:00:21]} 4. Bg2 {[%emt 0:00:12]} Be7 {[%emt 0:03:56] LiveBook: 6078 Games} 5. O-O {[%emt 0:00:09]} O-O {[%emt 0:00:32]} 6. b3 {[%emt 0:00:07]} Ne4 {[%emt 0:03:38]} 7. Qc2 {[%emt 0:01:52] A14: English Opening: 1...e6 with b3 by White} (7. Bb2 Bf6 8. d4 c5 9. e3 Nc6 10. Nc3 Nxc3 11. Bxc3 dxc4 12. bxc4 Bd7 13. Rc1 cxd4 14. exd4 Rc8 {0-1 (60) Korpa,B (2421)-Kosic,D (2493) Budapest 2014}) 7... Bf6 {[%emt 0:02:58]} 8. d4 {[%emt 0:00:23]} c5 {[%emt 0:09:41]} 9. Bb2 {[%emt 0:01:56]} Nc6 $146 {[%emt 0:03:05]} ({Predecessor:} 9... cxd4 10. Nxd4 Bxd4 11. Bxd4 dxc4 12. Qxe4 cxb3 13. axb3 Nc6 14. Bc5 Re8 15. Nc3 Qf6 16. Qe3 a5 17. Rfd1 Qf5 18. Nb5 Rb8 19. Nd6 {1-0 (19) Lauer,R (1719)-Pibernik,D (1509) GER email 2012}) 10. Rd1 {[%emt 0:00:34]} Nb4 {[%emt 0:34:28]} 11. Qc1 {[%emt 0:00:40]} dxc4 {[%emt 0:06:06]} 12. Ne5 {[%emt 0:04:37]} (12. bxc4 $16 Bd7 13. Nbd2 Nxd2 14. Rxd2) 12... cxd4 {[%emt 0:20:13]} 13. Bxd4 {[%emt 0:12:04] [#]} Nd3 $1 {[%emt 0:04:28]} 14. Qe3 {[%emt 0:14:33]} (14. Rxd3 $142 cxd3 15. e3) 14... Nxe5 $2 {[%emt 0:04:35]} (14... Ndxf2 $19 15. Na3 Bg5) 15. Bxe4 {[%emt 0:07:37]} Ng4 {[%emt 0:03:20]} 16. Qd2 $1 {[%emt 0:01:22]} Bxd4 {[%emt 0:02:51]} 17. Qxd4 {[%emt 0:00:08]} Qxd4 {[%emt 0:00:42]} 18. Rxd4 {[%emt 0:00:06]} cxb3 {[%emt 0:01:13]} 19. axb3 {[%emt 0:00:11]} Nf6 {[%emt 0:01:43]} 20. Bf3 {[%emt 0:01:49]} e5 {[%emt 0:01:01]} 21. Rda4 {[%emt 0:02:18]} a6 {[%emt 0:03:09]} 22. Nc3 {[%emt 0:00:46]} Rb8 {[%emt 0:00:39]} 23. Nd5 {[%emt 0:20:14]} Nxd5 {[%emt 0:00:32]} 24. Bxd5 {[%emt 0:00:03]} Rd8 {[%emt 0:00:21]} 25. e4 {[%emt 0:01:29]} Kf8 {[%emt 0:01:25]} 26. Rc1 {[%emt 0:01:55]} b5 {[%emt 0:01:12]} 27. Ra2 {[%emt 0:01:22]} Rb6 {[%emt 0:00:24]} 28. Rc7 {[%emt 0:02:58]} Be6 {[%emt 0:00:05]} 29. Bxe6 {[%emt 0:01:56]} Rxe6 {[%emt 0:00:03]} 30. Ra7 {[%emt 0:03:32]} Rdd6 {[%emt 0:01:01]} 31. Kg2 {[%emt 0:01:34]} Rc6 {[%emt 0:00:25]} 32. Kf1 $17 {[%emt 0:01:41]} (32. Kf3 {[%emt 0:00:49]}) 32... g6 {[%emt 0:00:03]} 33. Ke2 {[%emt 0:00:57]} Red6 {[%emt 0:00:05]} 34. f4 {[%emt 0:02:37]} Rd4 {[%emt 0:00:27]} 35. fxe5 {[%emt 0:09:10]} Rxe4+ {[%emt 0:00:03]} 36. Kd3 {[%emt 0:00:30]} Rxe5 {[%emt 0:00:03]} 37. R7xa6 {[%emt 0:01:15]} Rxa6 {[%emt 0:00:11]} 38. Rxa6 {[%emt 0:00:03]} Ke7 {[%emt 0:00:06]} 39. Rb6 {[%emt 0:02:11]} h5 {[%emt 0:00:02]} 1/2-1/2

[Event "Gibraltar Challengers A 2019"]
[Site "Caleta"]
[Date "2019.01.21"]
[Round "1"]
[White "Maisuradze, Nino"]
[Black "Lung, Liviu-Catalin"]
[Result "1-0"]
[ECO "A69"]
[WhiteElo "2215"]
[BlackElo "2036"]
[Annotator "NA"]
[PlyCount "71"]
[EventDate "2019.01.21"]
[EventType "swiss"]
[EventCountry "GGB"]
[SourceTitle "playchess.com"]
[Source "ChessBase"]
[SourceQuality "1"]
[TimeControl "6600+10"]

{[%evp 8,66,37,32767,14,19,12,32767,32767,32767,3,32767,32767,32767,-22,-20,-12,32767,32767,-61,32767,32767,-54,-53,45,56,235,237,212,271,257,225,32767,32767,32767,233,32767,329,32767,32767,32767,32767,32767,32767,32767,337,32767,32767,32767,1521,32767,32767,32767,32767,29993,32767,32767,29991,29994,29995,29997]} 1. d4 {[%emt 0:01:36]} Nf6 {[%emt 0:00:00]} 2. c4 {[%emt 0:00:03]} g6 {[%emt 0:00:04]} 3. Nc3 {[%emt 0:00:21]} Bg7 {[%emt 0:00:05]} 4. e4 {[%emt 0:00:07]} O-O {[%emt 0:00:06]} 5. f4 {[%emt 0:00:22]} c5 {[%emt 0:00:26]} 6. d5 {[%emt 0:00:06]} d6 {[%emt 0:00:26]} 7. Be2 {[%emt 0:03:00]} e6 {[%emt 0:01:36]} 8. Nf3 {[%emt 0:00:06]} exd5 {[%emt 0:02:01]} 9. cxd5 {[%emt 0:00:01]} Re8 {[%emt 0:03:28]} 10. e5 {[%emt 0:01:04]} dxe5 {[%emt 0:02:12]} 11. fxe5 {[%emt 0:00:02]} Ng4 {[%emt 0:00:53]} 12. Bg5 {[%emt 0:00:11]} Qb6 {[%emt 0:01:54]} 13. O-O {[%emt 0:00:51]} Nxe5 {[%emt 0:05:00]} 14. d6 {[%emt 0:00:59]} Nxf3+ {[%emt 0:09:43]} 15. Bxf3 {[%emt 0:01:22]} Bd4+ {[%emt 0:01:05] LiveBook: 5 Games A69: Modern Benoni: Four Pawns Attack with 9...Re8} ({Black should try} 15... Qxb2 $15 16. Nd5 Bd4+ 17. Kh1 $15 Qxa1 18. Qxa1 Bxa1 19. Rxa1 Nd7 (19... Re5 20. Bf4 Rxd5 21. Bxd5 Nc6 22. Bxc6 bxc6 23. Rc1 f6 24. Be3 {½-½ (56) Rain,R (2278)-Romm,M (2460) ICCF email 2014})) 16. Kh1 {[%emt 0:00:10]} Nd7 $2 {[%emt 0:05:08]} (16... Qxd6 $14 17. Bd5 Be6 18. Bxb7 Nd7) 17. Bd5 {[%emt 0:08:54]} Ne5 {[%emt 0:00:11]} 18. Ne4 {[%emt 0:04:26]} Re6 $146 {[%emt 0:11:26]} ({Predecessor:} 18... Be6 19. Nf6+ Kg7 20. Nxe8+ Rxe8 21. Bf6+ Kg8 22. Qa4 Rf8 23. Bxe5 Bxd5 24. Bxd4 cxd4 {½-½ (44) De Villiers,C (2237)-Wium,D (1923) Cape Town 2015}) 19. Bxe6 {[%emt 0:35:59]} Bxe6 {[%emt 0:00:11]} 20. Nf6+ {[%emt 0:28:48]} Kg7 {[%emt 0:14:34] [#]} 21. Qe1 $1 {[%emt 0:05:39]} Qxd6 {[%emt 0:15:43] [#]} 22. Bh6+ $1 {[%emt 0:04:05]} Kxh6 {[%emt 0:06:37]} 23. Qh4+ {[%emt 0:00:07]} Kg7 {[%emt 0:00:05]} 24. Qxh7+ {[%emt 0:00:05]} Kf8 {[%emt 0:00:05]} 25. Qg8+ {[%emt 0:00:20]} Ke7 {[%emt 0:00:07]} 26. Qxa8 {[%emt 0:00:13]} Bf5 {[%emt 0:02:15]} 27. Ng8+ {[%emt 0:00:54]} Ke6 {[%emt 0:00:35]} 28. Qe8+ {[%emt 0:03:35]} Kd5 {[%emt 0:00:33]} 29. Ne7+ {[%emt 0:00:06]} Ke4 {[%emt 0:00:44]} 30. Rae1+ {[%emt 0:00:08]} Kd3 {[%emt 0:02:38]} 31. Qb5+ {[%emt 0:04:00]} c4 {[%emt 0:00:34]} 32. Rd1+ {[%emt 0:01:08]} Ke3 {[%emt 0:01:00]} 33. Nd5+ {[%emt 0:02:00]} Ke2 {[%emt 0:00:43]} 34. Nf4+ {[%emt 0:01:30]} Ke3 {[%emt 0:00:10]} 35. Rde1+ {[%emt 0:00:14]} Kd2 {[%emt 0:00:07]} 36. Re2# {[%emt 0:00:09]} 1-0

[Event "Gibraltar Challengers A 2019"]
[Site "Caleta"]
[Date "2019.01.21"]
[Round "1"]
[White "Rodriguez Perez, Angel Mariano"]
[Black "Sedgwick, David"]
[Result "1-0"]
[ECO "C01"]
[WhiteElo "2204"]
[BlackElo "2024"]
[Annotator "NA"]
[PlyCount "83"]
[EventDate "2019.01.21"]
[EventType "swiss"]
[EventCountry "GGB"]
[SourceTitle "playchess.com"]
[Source "ChessBase"]
[SourceQuality "1"]
[TimeControl "6600+10"]

{[%evp 13,83,37,32767,32767,32767,48,44,42,31,31,169,32767,32767,-134,32767,32767,32767,32767,32767,41,63,0,18,4,32767,43,32767,32767,32767,315,32767,371,32767,32767,498,495,489,522,525,528,528,280,282,331,32767,381,425,424,32767,32767,381,32767,32767,32767,32767,32767,32767,32767,32767,32767,671,32767,497,571,32767,32767,32767,32767,32767,664,32767,4793]} 1. e4 {[%emt 0:00:00]} e6 {[%emt 0:00:05]} 2. d4 {[%emt 0:00:00]} d5 {[%emt 0:00:04]} 3. exd5 {[%emt 0:00:08]} exd5 {[%emt 0:00:09]} 4. Bf4 {[%emt 0:00:04]} Bd6 {[%emt 0:00:58]} 5. Qd2 {[%emt 0:00:07] C01: French: Exchange Variation} (5. Bxd6 Qxd6 6. c3 Bf5 7. Bd3 Bxd3 8. Qxd3 Ne7 9. Ne2 Nd7 10. Nd2 O-O 11. O-O {½-½ (11) Vovk,A (2617)-Vovk,Y (2626) Fagernes 2015}) 5... Bf5 {[%emt 0:01:22]} 6. Nc3 {[%emt 0:01:44]} Nf6 {[%emt 0:03:07]} 7. O-O-O {[%emt 0:00:18]} O-O {[%emt 0:00:23]} 8. f3 {[%emt 0:00:24]} Nc6 {[%emt 0:01:53]} 9. g4 {[%emt 0:00:10]} Bg6 {[%emt 0:01:03]} 10. h4 {[%emt 0:05:44]} Nb4 $146 {[%emt 0:03:54]} ({Predecessor:} 10... h5 11. g5 Bxf4 12. Qxf4 Ne8 13. Nh3 Ne7 14. Nf2 {½-½ (59) Vorotnikov,V (2505)-Danielian,O (2450) Moscow 1996}) 11. Bxd6 {[%emt 0:09:53]} Qxd6 {[%emt 0:02:53]} (11... cxd6 $11 12. Bd3 Bxd3 13. cxd3 Ne8) 12. h5 {[%emt 0:07:31]} Bxc2 {[%emt 0:00:08]} 13. Nb5 {[%emt 0:00:54]} Qc6 {[%emt 0:06:08]} 14. Qxb4 {[%emt 0:01:13]} Bxd1+ {[%emt 0:00:05]} 15. Kxd1 {[%emt 0:00:08]} a6 {[%emt 0:05:35]} 16. Nc3 {[%emt 0:01:09]} Rfe8 {[%emt 0:02:18]} 17. Rh2 {[%emt 0:11:23]} (17. g5 $14) 17... a5 {[%emt 0:05:32]} 18. Qa4 {[%emt 0:13:14]} Qd6 {[%emt 0:01:35]} 19. Qc2 {[%emt 0:00:18]} c5 {[%emt 0:07:56]} 20. Nb5 {[%emt 0:02:53]} Qd7 {[%emt 0:05:31] [#]} 21. g5 $1 {[%emt 0:06:41]} ({Not} 21. dxc5 d4 $16) 21... Ng4 {[%emt 0:00:43]} 22. fxg4 {[%emt 0:00:29]} Qxg4+ {[%emt 0:00:04]} 23. Ne2 {[%emt 0:00:23]} Qxg5 {[%emt 0:01:28]} 24. Nc7 {[%emt 0:06:54]} Qf6 {[%emt 0:02:30]} 25. Rh1 {[%emt 0:00:52]} Qf3 {[%emt 0:01:41]} 26. Rg1 {[%emt 0:03:34]} cxd4 {[%emt 0:01:08]} 27. Nxe8 {[%emt 0:02:48]} (27. Bg2 $142 Qxh5 28. Nxa8 Rxa8 29. Rh1) 27... Rxe8 {[%emt 0:00:41]} 28. Bg2 {[%emt 0:06:07]} Qe3 {[%emt 0:04:26]} 29. Qd2 {[%emt 0:02:21]} Qf2 {[%emt 0:00:38]} 30. Bf1 {[%emt 0:02:57]} g6 {[%emt 0:03:42]} 31. hxg6 {[%emt 0:01:41]} fxg6 {[%emt 0:02:13]} 32. Qg5 {[%emt 0:04:06]} Qf3 {[%emt 0:04:15]} 33. Qg3 {[%emt 0:00:18]} Qe4 {[%emt 0:01:33]} 34. Nc1 {[%emt 0:00:13]} Rf8 {[%emt 0:05:58]} 35. Bd3 {[%emt 0:00:45]} Qe8 {[%emt 0:00:38]} 36. Qg2 {[%emt 0:00:52]} Qc6 {[%emt 0:01:36]} 37. Qc2 {[%emt 0:01:16]} Qxc2+ {[%emt 0:06:00]} 38. Bxc2 {[%emt 0:00:06]} b5 {[%emt 0:00:15]} 39. Ne2 {[%emt 0:00:19]} Rc8 {[%emt 0:07:57]} 40. Nxd4 {[%emt 0:00:06]} Rc5 {[%emt 0:00:08]} 41. Rg5 {[%emt 0:01:01]} Kg7 {[%emt 0:01:13]} 42. Ne6+ $18 {[%emt 0:00:12]} 1-0

[Event "Gibraltar Challengers A 2019"]
[Site "Caleta"]
[Date "2019.01.21"]
[Round "1"]
[White "Saber, Yasser"]
[Black "Hassomal Daswani, Birjkumar"]
[Result "1-0"]
[ECO "A44"]
[WhiteElo "2201"]
[BlackElo "2008"]
[Annotator "NA"]
[PlyCount "120"]
[EventDate "2019.01.21"]
[EventType "swiss"]
[EventCountry "GGB"]
[SourceTitle "playchess.com"]
[Source "ChessBase"]
[SourceQuality "1"]
[TimeControl "6600+10"]

1. d4 {[%emt 0:00:00]} c5 {[%emt 0:00:46]} 2. d5 {[%emt 0:00:04]} e5 {[%emt 0:00:12]} 3. e4 {[%emt 0:01:48]} d6 {[%emt 0:00:07]} 4. Nc3 {[%emt 0:02:08]} Be7 {[%emt 0:00:38]} 5. Nf3 {[%emt 0:00:17]} Nf6 {[%emt 0:00:11]} 6. h3 {[%emt 0:09:07] A44: Semi-Benoni} (6. Bb5+ Nbd7 7. a4 O-O 8. O-O Ne8 9. a5 a6 10. Be2 g6 11. Nd2 f5 12. Nc4 f4 13. Bg4 Ng7 14. f3 {0-1 (46) Pfreundt,J (2394)-Heberla,B (2570) Karlsruhe 2018}) 6... Nbd7 {[%emt 0:00:17]} 7. a4 {[%emt 0:03:54]} Nf8 {[%emt 0:01:03]} 8. Bb5+ {[%emt 0:06:44]} Bd7 $146 {[%emt 0:00:21]} ({Predecessor:} 8... N6d7 9. Be3 Ng6 10. g3 a6 11. Be2 Nf6 12. Nd2 h5 13. a5 h4 {0-1 (41) Tsygankov,D (2068)-Chuguev,A (2197) Novosibirsk 2008}) 9. O-O {[%emt 0:10:35]} Ng6 {[%emt 0:00:12]} 10. Nd2 {[%emt 0:06:24]} O-O {[%emt 0:00:38]} 11. Bxd7 {[%emt 0:00:26]} Qxd7 {[%emt 0:03:47]} 12. Nc4 {[%emt 0:00:30]} Ne8 {[%emt 0:03:41]} 13. Ne3 {[%emt 0:07:48]} Bg5 {[%emt 0:02:31]} 14. Qg4 {[%emt 0:12:53]} Qxg4 {[%emt 0:05:03]} 15. hxg4 {[%emt 0:00:04]} Rd8 {[%emt 0:02:54]} 16. f3 {[%emt 0:19:54]} Rd7 {[%emt 0:00:15]} 17. Kf2 {[%emt 0:05:52]} Nh8 {[%emt 0:02:56]} 18. g3 {[%emt 0:09:00]} g6 {[%emt 0:00:19]} 19. Kg2 {[%emt 0:04:40]} Bd8 {[%emt 0:04:24]} 20. Rh1 {[%emt 0:05:09]} Ng7 {[%emt 0:00:30]} 21. f4 {[%emt 0:01:25]} f6 {[%emt 0:00:06]} 22. f5 {[%emt 0:02:26]} g5 {[%emt 0:00:15]} 23. Nc4 {[%emt 0:00:25]} Ne8 {[%emt 0:01:01]} 24. Be3 {[%emt 0:00:10]} Nf7 {[%emt 0:00:32]} 25. Kf3 {[%emt 0:00:04]} Bc7 {[%emt 0:01:24]} 26. Rhb1 {[%emt 0:00:39]} Ng7 {[%emt 0:06:11]} 27. b4 {[%emt 0:00:30]} cxb4 {[%emt 0:01:48]} 28. Rxb4 {[%emt 0:00:02]} Bb8 {[%emt 0:00:18]} 29. Rab1 {[%emt 0:00:30]} Nd8 {[%emt 0:02:21]} 30. Nb5 {[%emt 0:00:08]} a6 {[%emt 0:02:57]} 31. Nba3 {[%emt 0:01:15]} h5 {[%emt 0:02:48]} 32. Na5 {[%emt 0:00:14]} hxg4+ {[%emt 0:01:03]} 33. Kxg4 {[%emt 0:00:01]} Rff7 {[%emt 0:00:12]} 34. c4 {[%emt 0:00:05]} (34. Rc4 $142) 34... Ne8 {[%emt 0:02:20]} 35. c5 {[%emt 0:00:02]} dxc5 {[%emt 0:00:17]} 36. Bxc5 {[%emt 0:00:01]} Bd6 {[%emt 0:00:32]} 37. Nb3 {[%emt 0:00:42]} Rc7 {[%emt 0:01:04]} 38. Rc4 {[%emt 0:00:13]} Bxc5 {[%emt 0:00:30]} 39. Rxc5 {[%emt 0:00:08]} Rxc5 {[%emt 0:01:18]} 40. Nxc5 {[%emt 0:00:01]} Rc7 {[%emt 0:00:27]} 41. Rc1 {[%emt 0:00:01]} Nd6 {[%emt 0:00:55]} 42. Kf3 {[%emt 0:00:03]} b6 {[%emt 0:00:28]} 43. Nd3 {[%emt 0:00:09]} Rxc1 44. Nxc1 {[%emt 0:00:01]} N8b7 {[%emt 0:01:03]} 45. Nb3 {[%emt 0:00:38]} Kf7 {[%emt 0:00:54]} 46. Ke3 {[%emt 0:00:05]} Ke7 {[%emt 0:00:46]} 47. Kd3 {[%emt 0:00:07]} Kd7 {[%emt 0:00:10]} 48. Nc4 {[%emt 0:00:26]} Kc7 {[%emt 0:02:22]} 49. Ne3 {[%emt 0:00:02]} b5 {[%emt 0:01:50]} 50. axb5 {[%emt 0:00:07]} axb5 {[%emt 0:00:15]} 51. Ng4 {[%emt 0:00:02]} Ne8 {[%emt 0:00:36]} 52. Kc3 {[%emt 0:00:05]} Kb6 {[%emt 0:01:31]} 53. Kb4 {[%emt 0:00:03]} Nbd6 {[%emt 0:00:19]} 54. Nc5 {[%emt 0:00:05]} Kc7 {[%emt 0:01:42]} 55. Ka5 {[%emt 0:00:02]} (55. Nf2 $16) 55... Nxf5 {[%emt 0:02:15]} 56. exf5 {[%emt 0:00:27]} Kd6 {[%emt 0:00:12]} 57. Ne4+ {[%emt 0:00:30]} Kxd5 {[%emt 0:01:47]} 58. Nexf6+ {[%emt 0:00:06]} Nxf6 {[%emt 0:00:29]} 59. Nxf6+ {[%emt 0:00:03]} Kc4 {[%emt 0:01:18]} 60. Ne4 {[%emt 0:00:04]} Kd5 {[%emt 0:01:33]} 1-0